lending/lending_fUSD_20251022
["ID","MTS","AMOUNT","RATE_DAILY","PERIOD"]
[392102438,1761161470316,-536.00996277,0.00043999,120]
[392102439,1761161470325,-500.0,0.00043999,120]
[392102440,1761161470335,-500.0,0.00043999,120]
[392102441,1761161470344,-500.0,0.00043999,120]
[392102442,1761161470354,-159.16610065,0.00043999,120]
[392102443,1761161470364,-500.0,0.00043999,120]
[392102444,1761161470374,-500.0,0.00043999,120]
[392102445,1761161470383,-500.0,0.00043999,120]
[392102446,1761161470393,-500.0,0.00043999,120]
[392102447,1761161470403,-839.26,0.00043999,120]
[392102448,1761161470413,-839.26,0.00043999,120]
[392102449,1761161470422,-500.0,0.00043999,120]
[392102450,1761161470431,-500.0,0.00043999,120]
[392102451,1761161470441,-639.08,0.00043999,120]
[392102452,1761161470450,-639.08,0.00043999,120]
[392102453,1761161470460,-500.0,0.00043999,120]
[392102454,1761161470470,-500.0,0.00043999,120]
[392102455,1761161470479,-1205.25,0.00043999,120]
[392102456,1761161470489,-1205.25,0.00043999,120]
[392102457,1761161470498,-500.0,0.00043999,120]
[392102458,1761161470507,-506.1265657,0.00043999,120]
[392102459,1761161470516,-500.0,0.00043999,120]
[392102460,1761161470525,-368.7435861,0.00043999,120]
[392102461,1761161470534,-664.72,0.00043999,120]
[392102462,1761161470543,-664.72,0.00043999,120]
[392102463,1761161470553,-726.53,0.00043999,120]
[392102464,1761161470563,-726.53,0.00043999,120]
[392102465,1761161470572,-500.0,0.00043999,120]
[392102466,1761161470581,-500.0,0.00043999,120]
[392102467,1761161470591,-500.0,0.00043999,120]
[392102468,1761161470600,-837.99,0.00043999,120]
[392102469,1761161470609,-837.99,0.00043999,120]
[392102470,1761161470618,-837.99,0.00043999,120]
[392102471,1761161470628,-837.99,0.00043999,120]
[392102472,1761161470636,-824.35,0.00043999,120]
[392102473,1761161470645,-824.35,0.00043999,120]
[392102474,1761161470655,-500.0,0.00043999,120]
[392102475,1761161470665,-500.0,0.00043999,120]
[392102476,1761161470674,-500.0,0.00043999,120]
[392102477,1761161470684,-739.95,0.00043999,120]
[392102478,1761161470694,-500.0,0.00043999,120]
[392102479,1761161470704,-739.95,0.00043999,120]
[392102480,1761161470714,-500.0,0.00043999,120]
[392102481,1761161470725,-500.0,0.00043999,120]
[392102482,1761161470736,-483.78386132,0.00043999,120]
[392102483,1761161470745,-500.0,0.00043999,120]
[392102484,1761161470755,-576.72178223,0.00043999,120]
[392102485,1761161470765,-916.3,0.00043999,120]
[392102486,1761161470775,-916.3,0.00043999,120]
[392102487,1761161470784,-858.34,0.00043999,2]
[392102488,1761161470794,-858.34,0.00043999,2]
[392102489,1761161470803,-858.34,0.00043999,2]
[392102490,1761161470813,-858.34,0.00043999,2]
[392102491,1761161470822,-500.0,0.00043999,120]
[392102492,1761161470832,-376.56180578,0.00043999,120]
[392102493,1761161470842,-1101.44,0.00043999,120]
[392102494,1761161470851,-1101.44,0.00043999,120]
[392102495,1761161470860,-1101.44,0.00043999,120]
[392102496,1761161470869,-1101.44,0.00043999,120]
[392102497,1761161470879,-623.15,0.00043999,120]
[392102498,1761161470888,-623.15,0.00043999,120]
[392102499,1761161470898,-759.76,0.00043999,120]
[392102500,1761161470908,-759.76,0.00043999,120]
[392102501,1761161470918,-1418.79,0.00043999,120]
[392102502,1761161470927,-1418.79,0.00043999,120]
[392102503,1761161470937,-668.32,0.00043999,120]
[392102504,1761161470947,-668.32,0.00043999,120]
[392102505,1761161470957,-668.32,0.00043999,120]
[392102506,1761161470967,-668.32,0.00043999,120]
[392102507,1761161470976,-500.0,0.00043999,120]
[392102508,1761161470986,-500.0,0.00043999,120]
[392102509,1761161470996,-505.32579264,0.00043999,120]
[392102510,1761161471006,-731.53,0.00043999,120]
[392102511,1761161471016,-731.53,0.00043999,120]
[392102512,1761161471025,-500.0,0.00043999,120]
[392102513,1761161471035,-500.0,0.00043999,120]
[392102514,1761161471044,-4265.19,0.00043999,30]
[392102515,1761161471054,-500.0,0.00043999,120]
[392102516,1761161471064,-4265.19,0.00043999,30]
[392102517,1761161471073,-516.45408576,0.00043999,120]
[392102518,1761161471082,-1263.06,0.00043999,120]
[392102519,1761161471092,-1263.06,0.00043999,120]
[392102520,1761161471103,-1263.06,0.00043999,120]
[392102521,1761161471112,-1263.06,0.00043999,120]
[392102522,1761161471122,-500.0,0.00043999,30]
[392102523,1761161471132,-500.0,0.00043999,30]
[392102524,1761161471244,-500.0,0.00043999,120]
[392102525,1761161471257,-500.0,0.00043999,120]
[392102526,1761161471266,-500.0,0.00043999,120]
[392102527,1761161471275,-500.0,0.00043999,120]
[392102528,1761161471286,-1623.35,0.00043999,120]
[392102529,1761161471296,-1623.35,0.00043999,120]
[392102530,1761161471305,-1623.35,0.00043999,120]
[392102531,1761161471315,-1623.35,0.00043999,120]
[392102532,1761161471327,-500.0,0.00043999,120]
[392102533,1761161471336,-500.0,0.00043999,120]
[392102534,1761161471346,-538.57,0.00043999,120]
[392102535,1761161471355,-538.57,0.00043999,120]
[392102536,1761161471365,-891.43,0.00043999,120]
[392102537,1761161471375,-891.43,0.00043999,120]
[392102538,1761161471384,-500.0,0.00043999,120]
[392102539,1761161471393,-500.0,0.00043999,120]
[392102540,1761161471403,-615.70642401,0.00043999,120]
[392102541,1761161471412,-709.57,0.00043999,120]
[392102542,1761161471422,-709.57,0.00043999,120]
[392102543,1761161471431,-617.0,0.00043999,120]
[392102544,1761161471441,-617.0,0.00043999,120]
[392102545,1761161471451,-617.0,0.00043999,120]
[392102546,1761161471461,-617.0,0.00043999,120]
[392102547,1761161471470,-708.56,0.00043999,120]
[392102548,1761161471481,-708.56,0.00043999,120]
[392102549,1761161471490,-4110.15,0.00043999,120]
[392102550,1761161471499,-4110.15,0.00043999,120]
[392102551,1761161471508,-297.22796099,0.00043999,120]
[392102552,1761161471518,-500.0,0.00043999,120]
[392102553,1761161471528,-500.0,0.00043999,120]
[392102554,1761161471537,-500.0,0.00043999,120]
[392102555,1761161471547,-299.96258749,0.00043999,120]
[392102556,1761161471556,-500.0,0.00043999,120]
[392102557,1761161471566,-500.0,0.00043999,120]
[392102558,1761161471575,-834.33,0.00043999,120]
[392102559,1761161471584,-834.33,0.00043999,120]
[392102560,1761161471594,-500.0,0.00043999,120]
[392102561,1761161471604,-159.35154255,0.00043999,120]
[392102562,1761161471614,-889.38,0.00043999,120]
[392102563,1761161471623,-777.67,0.00043999,120]
[392102564,1761161471633,-889.38,0.00043999,120]
[392102565,1761161471643,-500.0,0.00043999,120]
[392102566,1761161471652,-777.67,0.00043999,120]
[392102567,1761161471662,-500.0,0.00043999,120]
[392102568,1761161471671,-500.0,0.00043999,120]
[392102569,1761161471680,-500.0,0.00043999,120]
[392102570,1761161471689,-500.0,0.00043999,120]
[392102571,1761161471698,-500.0,0.00043999,120]
[392102572,1761161471708,-205.35718297,0.00043999,120]
[392102573,1761161471717,-500.0,0.00043999,120]
[392102574,1761161471727,-500.0,0.00043999,120]
[392102575,1761161471736,-500.0,0.00043999,120]
[392102576,1761161471746,-500.0,0.00043999,120]
[392102577,1761161471756,-1087.18,0.00043999,120]
[392102578,1761161471765,-1087.18,0.00043999,120]
[392102579,1761161471775,-691.13,0.00043999,120]
[392102580,1761161471784,-691.13,0.00043999,120]
[392102581,1761161471793,-500.0,0.00043999,120]
[392102582,1761161471803,-500.0,0.00043999,120]
[392102583,1761161471813,-500.0,0.00043999,120]
[392102584,1761161471822,-500.0,0.00043999,120]
[392102585,1761161471831,-577.29,0.00043999,120]
[392102586,1761161471840,-577.29,0.00043999,120]
[392102587,1761161471850,-500.0,0.00043999,120]
[392102588,1761161471859,-500.0,0.00043999,120]
[392102589,1761161471869,-500.0,0.00043999,120]
[392102590,1761161471878,-3246.52,0.00043999,120]
[392102591,1761161471887,-887.37,0.00043999,120]
[392102592,1761161471897,-3246.52,0.00043999,120]
[392102593,1761161471908,-887.37,0.00043999,120]
[392102594,1761161471917,-887.37,0.00043999,120]
[392102595,1761161471927,-887.37,0.00043999,120]
[392102596,1761161471936,-887.37,0.00043999,120]
[392102597,1761161471945,-887.37,0.00043999,120]
[392102598,1761161471954,-625.58,0.00043999,120]
[392102599,1761161471964,-625.58,0.00043999,120]
[392102600,1761161471973,-500.0,0.00043999,120]
[392102601,1761161471983,-229.90050684,0.00043999,120]
[392102602,1761161471993,-5477.48,0.00043999,120]
[392102603,1761161472003,-5477.48,0.00043999,120]
[392102604,1761161472013,-500.0,0.00043999,120]
[392102605,1761161472023,-500.0,0.00043999,120]
[392102606,1761161472033,-500.0,0.00043999,120]
[392102607,1761161472043,-500.0,0.00043999,120]
[392102608,1761161472053,-521.96,0.00043999,120]
[392102609,1761161472063,-521.96,0.00043999,120]
[392102610,1761161472073,-500.0,0.00043999,120]
[392102611,1761161472083,-500.0,0.00043999,120]
[392102612,1761161472092,-500.0,0.00043999,120]
[392102613,1761161472103,-500.0,0.00043999,120]
[392102614,1761161472112,-537.84,0.00043999,120]
[392102615,1761161472122,-537.84,0.00043999,120]
[392102616,1761161472131,-500.0,0.00043999,120]
[392102617,1761161472141,-500.0,0.00043999,120]
[392102618,1761161472150,-500.0,0.00043999,120]
[392102619,1761161472160,-500.0,0.00043999,120]
[392102620,1761161472170,-500.0,0.00043999,120]
[392102621,1761161472179,-500.0,0.00043999,120]
[392102622,1761161472188,-593.34,0.00043999,120]
[392102623,1761161472198,-593.34,0.00043999,120]
[392102624,1761161472209,-356.33925992,0.00043999,120]
[392102625,1761161472219,-1404.73,0.00043999,120]
[392102626,1761161472230,-1404.73,0.00043999,120]
[392102627,1761161472239,-636.1,0.00043999,120]
[392102628,1761161472253,-665.52,0.00043999,120]
[392102629,1761161472263,-1404.73,0.00043999,120]
[392102630,1761161472272,-636.1,0.00043999,120]
[392102631,1761161472283,-665.52,0.00043999,120]
[392102632,1761161472292,-1404.73,0.00043999,120]
[392102633,1761161472303,-636.1,0.00043999,120]
[392102634,1761161472313,-636.1,0.00043999,120]
[392102635,1761161472325,-583.51,0.00043999,120]
[392102636,1761161472335,-583.51,0.00043999,120]
[392102637,1761161472345,-500.0,0.00043999,120]
[392102638,1761161472355,-500.0,0.00043999,120]
[392102639,1761161472366,-500.0,0.00043999,120]
[392102640,1761161472375,-500.0,0.00043999,120]
[392102641,1761161472384,-500.0,0.00043999,120]
[392102642,1761161472394,-500.0,0.00043999,120]
[392102643,1761161472403,-500.0,0.00043999,120]
[392102644,1761161472413,-500.0,0.00043999,120]
[392102645,1761161472422,-500.0,0.00043999,120]
[392102646,1761161472431,-825.9,0.00043999,120]
[392102647,1761161472441,-825.9,0.00043999,120]
[392102648,1761161472451,-825.9,0.00043999,120]
[392102649,1761161472461,-825.9,0.00043999,120]
[392102650,1761161472471,-857.87,0.00043999,120]
[392102651,1761161472481,-857.87,0.00043999,120]
[392102652,1761161472491,-857.87,0.00043999,120]
[392102653,1761161472500,-857.87,0.00043999,120]
[392102654,1761161472510,-707.53,0.00043999,120]
[392102655,1761161472519,-707.53,0.00043999,120]
[392102656,1761161472529,-707.53,0.00043999,120]
[392102657,1761161472539,-707.53,0.00043999,120]
[392102658,1761161472550,-500.0,0.00043999,120]
[392102659,1761161472560,-500.0,0.00043999,120]
[392102660,1761161472570,-500.0,0.00043999,120]
[392102661,1761161472579,-500.0,0.00043999,120]
[392102662,1761161472588,-500.0,0.00043999,120]
[392102663,1761161472602,-500.0,0.00043999,120]
[392102664,1761161472611,-500.0,0.00043999,120]
[392102665,1761161472621,-1079.01,0.00043999,120]
[392102666,1761161472631,-1079.01,0.00043999,120]
[392102667,1761161472640,-768.13,0.00043999,120]
[392102668,1761161472649,-768.13,0.00043999,120]
[392102669,1761161472659,-789.86,0.00043999,120]
[392102670,1761161472668,-789.86,0.00043999,120]
[392102671,1761161472678,-789.86,0.00043999,120]
[392102672,1761161472687,-789.86,0.00043999,120]
[392102673,1761161472697,-789.86,0.00043999,120]
[392102674,1761161472706,-789.86,0.00043999,120]
[392102675,1761161472716,-692.82,0.00043999,120]
[392102676,1761161472725,-692.82,0.00043999,120]
[392102677,1761161472735,-1016.54,0.00043999,120]
[392102678,1761161472744,-1016.54,0.00043999,120]
[392102679,1761161472753,-801.13,0.00043999,120]
[392102680,1761161472763,-801.13,0.00043999,120]
[392102681,1761161472772,-500.0,0.00043999,120]
[392102682,1761161472781,-500.0,0.00043999,120]
[392102683,1761161472791,-651.4,0.00043999,120]
[392102684,1761161472800,-651.4,0.00043999,120]
[392102685,1761161472809,-1029.39,0.00043999,120]
[392102686,1761161472819,-1029.39,0.00043999,120]
[392102687,1761161472828,-799.25,0.00043999,120]
[392102688,1761161472838,-799.25,0.00043999,120]
[392102689,1761161472847,-151.0,0.00043999,120]
[392102690,1761161472856,-1074.58,0.00043999,120]
[392102691,1761161472865,-1074.58,0.00043999,120]
[392102692,1761161472875,-1074.58,0.00043999,120]
[392102693,1761161472884,-1074.58,0.00043999,120]
[392102694,1761161472893,-1074.58,0.00043999,120]
[392102695,1761161472904,-613.54,0.00043999,120]
[392102696,1761161472915,-613.54,0.00043999,120]
[392102697,1761161472925,-558.32,0.00043999,120]
[392102698,1761161472935,-558.32,0.00043999,120]
[392102699,1761161472944,-1203.5,0.00043999,120]
[392102700,1761161472953,-1203.5,0.00043999,120]
[392102701,1761161472963,-1203.5,0.00043999,120]
[392102702,1761161472972,-1203.5,0.00043999,120]
[392102703,1761161472982,-1203.5,0.00043999,120]
[392102704,1761161472992,-609.65,0.00043999,120]
[392102705,1761161473001,-609.65,0.00043999,120]
[392102706,1761161473011,-151.0,0.00043999,120]
[392102707,1761161473021,-500.0,0.00043999,120]
[392102708,1761161473030,-500.0,0.00043999,120]
[392102709,1761161473040,-2024.8,0.00043999,120]
[392102710,1761161473050,-2024.8,0.00043999,120]
[392102711,1761161473059,-2024.8,0.00043999,120]
[392102712,1761161473068,-2024.8,0.00043999,120]
[392102713,1761161473078,-2024.8,0.00043999,120]
[392102714,1761161473088,-875.35,0.00043999,120]
[392102715,1761161473097,-875.35,0.00043999,120]
[392102716,1761161473107,-188.878195,0.00043999,30]
[392102717,1761161473117,-151.0,0.00043999,120]
[392102718,1761161473127,-188.878195,0.00043999,30]
[392102719,1761161473136,-692.44,0.00043999,120]
[392102720,1761161473145,-692.44,0.00043999,120]
[392102721,1761161473154,-350698.5941435,0.00044,2]
[392102722,1761161473164,-183841.37346309,0.00044,120]
[392102723,1761161473173,-90863.0768575,0.00044,2]
[392102724,1761161473183,-500.0,0.00044,120]
[392102725,1761161473193,-362.09,0.00044,120]
[392102726,1761161473203,-1464.4,0.00044,14]
[392102727,1761161473212,-1220.68404606,0.00044,7]
[392102728,1761161473221,-200.0,0.00044,7]
[392102729,1761161473230,-151.0,0.00044,120]
[392102730,1761161473241,-153.451903,0.00044,120]
[392102731,1761161473251,-151.0,0.00044,120]
[392102732,1761161473262,-151.0,0.00044,120]
[392102733,1761161473271,-158.520752,0.00044,120]
[392102734,1761161473280,-151.0,0.00044,120]
[392102735,1761161473291,-151.0,0.00044,120]
[392102736,1761161473300,-151.0,0.00044,120]
[392102737,1761161473309,-154.951503,0.00044,120]
[392102738,1761161473321,-2000.0,0.00044,7]
[392102739,1761161473331,-200.0,0.00044,7]
[392102740,1761161473340,-255.913054,0.00044,120]
[392102741,1761161473349,-255.913054,0.00044,120]
[392102742,1761161473358,-255.913054,0.00044,120]
[392102743,1761161473368,-255.913054,0.00044,120]
[392102744,1761161473378,-240902.34126403,0.00044,2]
[392102745,1761161473774,-523608.2940075,0.00044,2]
[392102746,1761161473783,-150.62,0.00044027,30]
[392102747,1761161473794,-2858.32932905,0.00044071,15]
[392102748,1761161473803,-180.53014428,0.00044073,14]
[392102749,1761161473813,-500.0,0.00044074,120]
[392102750,1761161473822,-500.0,0.00044074,120]
[392102751,1761161473831,-500.0,0.00044074,120]
[392102752,1761161473841,-500.0,0.00044074,120]
[392102753,1761161473850,-1074.58,0.00044074,120]
[392102754,1761161473859,-1203.5,0.00044074,120]
[392102755,1761161473869,-2024.8,0.00044074,120]
[392102756,1761161473879,-4265.19,0.00044075,30]
[392102757,1761161473888,-538.57,0.00044075,120]
[392102758,1761161473898,-709.57,0.00044075,120]
[392102759,1761161473908,-4110.15,0.00044075,120]
[392102760,1761161473918,-889.38,0.00044075,120]
[392102761,1761161473928,-777.67,0.00044075,120]
[392102762,1761161473937,-537.84,0.00044075,120]
[392102763,1761161473947,-1001.7878,0.00044076,2]
[392102764,1761161473957,-694.95,0.00044082,30]
[392102765,1761161473967,-1205.25,0.00044084,120]
[392102766,1761161473977,-824.35,0.00044084,120]
[392102767,1761161473987,-623.15,0.00044084,120]
[392102768,1761161473996,-500.0,0.00044084,120]
[392102769,1761161474006,-516.09,0.00044084,120]
[392102770,1761161474015,-891.43,0.00044084,120]
[392102771,1761161474025,-500.0,0.00044084,120]
[392102772,1761161474035,-500.0,0.00044084,120]
[392102773,1761161474044,-691.13,0.00044084,120]
[392102774,1761161474054,-500.0,0.00044084,120]
[392102775,1761161474063,-3246.52,0.00044084,120]
[392102776,1761161474073,-5477.48,0.00044084,120]
[392102777,1761161474083,-521.96,0.00044084,120]
[392102778,1761161474093,-593.34,0.00044084,120]
[392102779,1761161474102,-665.52,0.00044084,120]
[392102780,1761161474114,-1079.01,0.00044084,120]
[392102781,1761161474124,-692.82,0.00044084,120]
[392102782,1761161474133,-1016.54,0.00044084,120]
[392102783,1761161474143,-651.4,0.00044084,120]
[392102784,1761161474154,-558.32,0.00044084,120]
[392102785,1761161474163,-609.65,0.00044084,120]
[392102786,1761161474173,-692.44,0.00044084,120]
[392102787,1761161474183,-500.0,0.00044085,120]
[392102788,1761161474192,-548.33,0.00044085,120]
[392102789,1761161474201,-500.0,0.00044085,120]
[392102790,1761161474211,-300.0,0.00044085,2]
[392102791,1761161474220,-606.82,0.00044085,120]
[392102792,1761161474230,-337.61165484,0.00044085,120]
[392102793,1761161474239,-671.52,0.00044085,120]
[392102794,1761161474255,-500.0,0.00044085,120]
[392102795,1761161474265,-500.0,0.00044085,120]
[392102796,1761161474274,-500.0,0.00044085,120]
[392102797,1761161474283,-500.0,0.00044085,120]
[392102798,1761161474293,-500.0,0.00044085,120]
[392102799,1761161474302,-500.0,0.00044085,120]
[392102800,1761161474311,-158.75844758,0.00044085,120]
[392102801,1761161474323,-500.0,0.00044085,120]
[392102802,1761161474332,-500.0,0.00044085,120]
[392102803,1761161474342,-500.0,0.00044085,120]
[392102804,1761161474351,-500.0,0.00044085,120]
[392102805,1761161474361,-500.0,0.00044085,120]
[392102806,1761161474371,-500.0,0.00044085,120]
[392102807,1761161474381,-401.73580548,0.00044085,120]
[392102808,1761161474390,-500.0,0.00044085,120]
[392102809,1761161474399,-500.0,0.00044085,120]
[392102810,1761161474408,-500.0,0.00044085,120]
[392102811,1761161474418,-640.79,0.00044085,60]
[392102812,1761161474427,-500.0,0.00044085,120]
[392102813,1761161474437,-524.04,0.00044085,120]
[392102814,1761161474446,-500.0,0.00044085,120]
[392102815,1761161474456,-500.0,0.00044085,120]
[392102816,1761161474465,-500.0,0.00044085,120]
[392102817,1761161474475,-500.0,0.00044085,120]
[392102818,1761161474484,-500.0,0.00044085,30]
[392102819,1761161474493,-500.0,0.00044085,120]
[392102820,1761161474503,-500.0,0.00044085,120]
[392102821,1761161474512,-500.0,0.00044085,120]
[392102822,1761161474521,-500.0,0.00044085,120]
[392102823,1761161474531,-500.0,0.00044085,120]
[392102824,1761161474540,-500.0,0.00044085,120]
[392102825,1761161474549,-695.69,0.00044085,120]
[392102826,1761161474559,-894.37,0.00044085,120]
[392102827,1761161474569,-760.01,0.00044085,120]
[392102828,1761161474578,-853.51,0.00044085,120]
[392102829,1761161474587,-961.77,0.00044085,120]
[392102830,1761161474596,-500.0,0.00044085,120]
[392102831,1761161474606,-500.0,0.00044085,120]
[392102832,1761161474615,-500.0,0.00044085,120]
[392102833,1761161474624,-567.15,0.00044085,120]
[392102834,1761161474634,-220.35978131,0.00044085,90]
[392102835,1761161474643,-604.59,0.00044085,120]
[392102836,1761161474652,-500.0,0.00044085,120]
[392102837,1761161474662,-500.0,0.00044085,120]
[392102838,1761161474671,-500.0,0.00044085,120]
[392102839,1761161474680,-500.0,0.00044085,120]
[392102840,1761161474689,-1141.01,0.00044085,120]
[392102841,1761161474699,-164.44324126,0.00044085,120]
[392102842,1761161474709,-500.0,0.00044085,120]
[392102843,1761161474718,-597.81,0.00044085,120]
[392102844,1761161474727,-500.0,0.00044085,120]
[392102845,1761161474737,-500.0,0.00044085,120]
[392102846,1761161474746,-500.0,0.00044085,120]
[392102847,1761161474755,-500.0,0.00044085,120]
[392102848,1761161474764,-555.98,0.00044085,12]
[392102849,1761161474773,-300.0,0.00044085,120]
[392102850,1761161474783,-670.61,0.00044085,120]
[392102851,1761161474793,-500.0,0.00044085,120]
[392102852,1761161474802,-500.0,0.00044085,120]
[392102853,1761161474812,-500.0,0.00044085,120]
[392102854,1761161474822,-500.0,0.00044085,120]
[392102855,1761161474831,-500.0,0.00044085,120]
[392102856,1761161474840,-839.26,0.00044085,120]
[392102857,1761161474850,-500.0,0.00044085,120]
[392102858,1761161474859,-639.08,0.00044085,120]
[392102859,1761161474869,-500.0,0.00044085,120]
[392102860,1761161474879,-664.72,0.00044085,120]
[392102861,1761161474889,-726.53,0.00044085,120]
[392102862,1761161474898,-383.7131179,0.00044085,120]
[392102863,1761161474907,-500.0,0.00044085,120]
[392102864,1761161474917,-739.95,0.00044085,120]
[392102865,1761161474927,-916.3,0.00044085,120]
[392102866,1761161474938,-759.76,0.00044085,120]
[392102867,1761161474948,-1418.79,0.00044085,120]
[392102868,1761161474958,-500.0,0.00044085,120]
[392102869,1761161474968,-731.53,0.00044085,120]
[392102870,1761161474978,-500.0,0.00044085,30]
[392102871,1761161474987,-500.0,0.00044085,120]
[392102872,1761161474998,-708.56,0.00044085,120]
[392102873,1761161475008,-500.0,0.00044085,120]
[392102874,1761161475017,-834.33,0.00044085,120]
[392102875,1761161475027,-500.0,0.00044085,120]
[392102876,1761161475037,-1087.18,0.00044085,120]
[392102877,1761161475047,-577.29,0.00044085,120]
[392102878,1761161475059,-625.58,0.00044085,120]
[392102879,1761161475069,-583.51,0.00044085,120]
[392102880,1761161475080,-500.0,0.00044085,120]
[392102881,1761161475089,-500.0,0.00044085,120]
[392102882,1761161475098,-768.13,0.00044085,120]
[392102883,1761161475108,-801.13,0.00044085,120]
[392102884,1761161475117,-500.0,0.00044085,120]
[392102885,1761161475127,-1029.39,0.00044085,120]
[392102886,1761161475137,-799.25,0.00044085,120]
[392102887,1761161475146,-613.54,0.00044085,120]
[392102888,1761161475155,-504.64868061,0.00044085,120]
[392102889,1761161475165,-875.35,0.00044085,120]
[392102890,1761161475174,-500.0,0.00044086,120]
[392102891,1761161475183,-1580.55,0.00044086,120]
[392102892,1761161475193,-837.83,0.00044086,120]
[392102893,1761161475202,-500.0,0.00044086,120]
[392102894,1761161475211,-1087.92,0.00044086,120]
[392102895,1761161475221,-993.44,0.00044086,120]
[392102896,1761161475231,-500.0,0.00044087,120]
[392102897,1761161475240,-500.0,0.00044087,120]
[392102898,1761161475249,-500.0,0.00044087,120]
[392102899,1761161475263,-500.0,0.00044087,120]
[392102900,1761161475272,-517.08457028,0.00044087,120]
[392102901,1761161475281,-4133.32607523,0.00044103,120]
[392102902,1761161475291,-3781.64289404,0.00044109,14]
[392102903,1761161475301,-292.42,0.00044109,7]
[392102904,1761161475311,-233.47,0.00044109,14]
[392102905,1761161475320,-168.0,0.00044145,7]
[392102906,1761161475331,-1000.0,0.000442,7]
[392102907,1761161475340,-736.0,0.00044215,120]
[392102908,1761161475350,-168.0,0.00044229,7]
[392102909,1761161475360,-153.0,0.0004424,120]
[392102910,1761161475370,-153.0,0.0004424,120]
[392102911,1761161475380,-153.0,0.0004424,120]
[392102912,1761161475390,-153.0,0.0004424,120]
[392102913,1761161475399,-153.0,0.0004424,120]
[392102914,1761161475408,-153.0,0.0004424,120]
[392102915,1761161475418,-153.0,0.0004424,120]
[392102916,1761161475427,-153.0,0.0004424,120]
[392102917,1761161475436,-153.0,0.0004424,120]
[392102918,1761161475446,-153.0,0.0004424,120]
[392102919,1761161475455,-153.0,0.0004424,120]
[392102920,1761161475465,-153.0,0.0004424,120]
[392102921,1761161475474,-153.0,0.0004424,120]
[392102922,1761161475484,-153.0,0.0004424,120]
[392102923,1761161475493,-153.0,0.0004424,120]
[392102924,1761161475503,-153.0,0.0004424,120]
[392102925,1761161475512,-153.0,0.0004424,120]
[392102926,1761161475522,-153.0,0.0004424,120]
[392102927,1761161475531,-153.0,0.0004424,120]
[392102928,1761161475541,-153.0,0.0004424,120]
[392102929,1761161475553,-153.0,0.0004424,120]
[392102930,1761161475563,-153.0,0.0004424,120]
[392102931,1761161475572,-153.0,0.0004424,120]
[392102932,1761161475582,-153.0,0.0004424,120]
[392102933,1761161475592,-153.0,0.0004424,120]
[392102934,1761161475603,-153.0,0.0004424,120]
[392102935,1761161475614,-153.0,0.0004424,120]
[392102936,1761161475624,-153.0,0.0004424,120]
[392102937,1761161475635,-153.0,0.0004424,120]